bitfinex/quotes_ETHUSD_20240618
["timestamp","ask_amount","ask_price","bid_price","bid_amount"]
[1718738739980,2.93154,3411.2,3410.8,2.93183]
[1718738740194,3.54147288,3411.6,3410.8,2.93183]
[1718738740195,0.61028288,3411.5,3410.8,2.93183]
[1718738740336,2.93136,3411.4,3410.9,2.93176]
[1718738740668,2.93145,3411.3,3410.9,2.93176]
[1718738741262,3.54164288,3411.4,3410.9,2.93176]
[1718738741445,2.93136,3411.4,3410.9,2.93176]
[1718738741636,2.93144,3411.3,3410.7,2.93186]
[1718738741836,2.93144,3411.3,3410.8,3.48184]
[1718738742035,2.93144,3411.3,3410.8,0.55]
[1718738742346,2.93193,3410.8,3410.3,2.93229]
[1718738742547,3.54223288,3410.7,3410.0,5.86501]
[1718738742847,3.54246288,3410.5,3409.9,2.93262]
[1718738743648,3.54233288,3410.6,3410.1,2.93245]
[1718738744274,0.61028288,3410.5,3410.1,2.93245]
[1718738744597,3.54233288,3410.6,3410.1,2.93245]
[1718738745294,0.61028288,3410.5,3410.1,2.93245]
[1718738745738,0.61028288,3410.5,3409.8,3.30267]
[1718738745942,0.61028288,3410.5,3409.0,0.05098418]
[1718738745943,2.93281,3409.7,3409.0,0.05098418]
[1718738746139,2.9329,3409.6,3409.0,2.9334]
[1718738746389,3.54300288,3409.8,3409.3,2.93309]
[1718738746943,0.61028288,3409.7,3409.3,2.93309]
[1718738747792,2.93289,3409.6,3409.1,3.22666]
[1718738748383,3.54300288,3409.8,3409.1,3.22665]
[1718738748559,3.54300288,3409.8,3409.2,3.255835]
[1718738748939,0.61028288,3409.9,3409.5,2.93296]
[1718738749244,3.54284288,3410.0,3409.5,2.93297]
[1718738749644,3.54293288,3409.9,3409.4,2.93305]
[1718738749844,2.93272,3409.8,3409.2,3.255885]
[1718738750044,2.93289,3409.6,3409.3,0.6482515]
[1718738750494,2.93307,3409.4,3408.8,5.04251]
[1718738750819,2.93307,3409.4,3408.9,2.93343]
[1718738751381,0.91607918,3409.7,3409.1,2.93325]
[1718738751382,0.61028288,3409.6,3409.1,2.93325]
[1718738751563,3.54318288,3409.6,3409.1,2.93325]
[1718738751770,2.93299,3409.5,3409.1,2.93325]
[1718738751977,0.61028288,3409.7,3409.3,2.93314]
[1718738752477,2.93292,3409.6,3409.2,2.93322]
[1718738753146,3.54301288,3409.8,3409.3,2.93306]
[1718738753345,2.9328,3409.7,3409.3,2.93306]
[1718738753547,0.61028288,3410.0,3409.3,0.615972]
[1718738753747,0.61028288,3410.1,3409.5,2.9329]
[1718738753993,0.61028288,3410.0,3409.4,2.93305]
[1718738754300,0.61028288,3410.0,3409.4,3.5812672]
[1718738754653,2.93275,3409.8,3409.4,0.6482172]
[1718738755051,2.93283,3409.7,3409.3,2.93309]
[1718738755253,2.93273,3409.8,3409.4,2.93305]
[1718738755878,2.93273,3409.8,3409.0,3.22674]
[1718738756246,2.93273,3409.8,3409.1,3.255924]
[1718738756583,2.93263,3409.9,3409.4,2.93299]
[1718738757682,2.93273,3409.8,3409.2,2.93323]
[1718738757983,2.93287,3409.7,3409.2,2.93323]
[1718738758151,2.93287,3409.7,3409.2,3.8748304]
[1718738758349,2.93287,3409.7,3409.3,2.93315]
[1718738759879,2.93272,3409.8,3409.0,0.29334]
[1718738760270,0.61028288,3410.0,3408.5,2.93378]
[1718738760271,2.93295,3409.6,3408.5,2.93378]
[1718738760474,2.93365,3408.8,3408.3,2.93401]
[1718738761170,2.93365,3408.8,3408.4,0.79771]
[1718738761491,2.93365,3408.8,3408.4,3.73161]
[1718738762060,7.37,3409.2,3408.5,2.93383]
[1718738762249,10.30325,3409.2,3408.7,2.93366]
[1718738762451,10.30325,3409.2,3408.8,2.93357]
[1718738762763,7.37,3409.2,3409.1,2.93332]
[1718738762951,7.37,3409.8,3409.1,0.55]
[1718738763150,7.37,3409.8,3409.7,2.9328]
[1718738763375,7.37,3409.8,3409.6,2.93288]
[1718738763777,2.9329,3409.6,3409.2,0.68173]
[1718738764087,7.37,3409.8,3409.2,0.68173]
[1718738764263,7.37,3409.8,3409.4,2.93306]
[1718738764681,7.37,3409.8,3409.3,3.50548]
[1718738764682,2.93297,3409.6,3409.3,0.5724]
[1718738764879,2.93297,3409.6,3409.2,0.68173]
[1718738765186,2.93283,3409.7,3409.2,3.61493]
[1718738765362,7.37,3409.8,3409.2,3.61488]
[1718738765878,2.9329,3409.6,3409.2,3.61488]
[1718738766401,10.30272,3409.8,3409.3,0.865721]
[1718738766402,7.37,3409.8,3409.3,0.865721]
[1718738766568,7.37,3409.8,3409.4,2.93305]
[1718738766754,2.93289,3409.6,3409.2,0.68173]
[1718738767099,2.93289,3409.6,3409.2,3.61494]
[1718738767273,2.93283,3409.7,3409.2,3.61494]
[1718738767654,7.37,3409.8,3409.2,3.61496]
[1718738767865,7.37,3409.8,3409.7,2.9328]
[1718738768067,7.37,3409.8,3409.7,5.8656]
[1718738768903,2.93214,3410.5,3409.7,5.8656]
[1718738768904,7.37,3410.4,3410.0,2.93251]
[1718738769111,2.93214,3410.5,3410.0,2.93251]
[1718738769386,10.30187,3410.8,3410.4,2.93216]
[1718738769584,10.30187,3410.8,3410.2,2.93236]
[1718738769800,2.93202,3410.7,3410.1,0.586516]
[1718738769979,2.93205,3410.6,3410.2,2.93237]
[1718738770302,7.37,3410.8,3410.4,2.93213]
[1718738770458,7.37,3410.8,3410.5,0.58645]
[1718738770663,7.37,3410.8,3410.4,2.9322]
[1718738771102,7.37,3410.8,3410.5,2.9321]
[1718738771470,7.37,3410.8,3410.7,2.93194]
[1718738771672,10.30152,3411.2,3410.7,2.93194]
[1718738771895,2.93163,3411.1,3410.7,2.93194]
[1718738772378,7.37,3411.2,3410.3,2.109]
[1718738772580,2.93135,3411.4,3410.9,2.9317]
[1718738773196,2.93143,3411.3,3410.9,2.9317]
[1718738774506,2.93143,3411.3,3410.8,2.93185]
[1718738775093,4.49688288,3411.5,3410.9,2.93177]
[1718738775416,0.61028288,3411.4,3410.4,0.7609]
[1718738775711,2.93153,3411.2,3410.5,2.109]
[1718738775896,3.54171288,3411.3,3410.8,2.93179]
[1718738776076,2.93143,3411.3,3410.8,2.93179]
[1718738776274,0.61028288,3411.4,3410.8,2.93179]
[1718738776505,3.54158288,3411.5,3410.8,3.729076]
[1718738776711,0.61028288,3411.5,3411.1,2.93152]
[1718738776879,7.98028288,3411.6,3411.1,2.93152]
[1718738777077,10.91148288,3411.6,3411.1,2.93152]
[1718738777413,3.54154288,3411.5,3411.0,2.93168]
[1718738777578,0.61028288,3411.5,3410.6,4.0333]
[1718738777776,7.37,3411.6,3411.4,2.93134]
[1718738778080,7.37,3411.6,3411.3,2.93141]
[1718738778284,10.30118,3411.6,3411.1,2.9316]
[1718738778511,10.30118,3411.6,3410.9,2.109]
[1718738778512,2.93135,3411.4,3410.9,2.109]
[1718738778717,2.93159,3411.2,3410.6,2.93202]
[1718738779309,3.54172288,3411.3,3410.7,2.93194]
[1718738779514,2.93153,3411.2,3410.7,2.93194]
[1718738780013,2.93196,3410.7,3410.3,2.93228]
[1718738780191,2.93184,3410.9,3410.3,2.93228]
[1718738780395,2.93169,3411.0,3410.4,2.93218]
[1718738780590,7.98028288,3411.1,3409.9,5.04159]
[1718738780792,2.93177,3410.9,3410.4,2.93217]
[1718738781192,0.61028288,3410.8,3410.4,2.93217]
[1718738781378,2.93195,3410.7,3410.2,2.93236]
[1718738781580,2.93214,3410.5,3409.7,3.91]
[1718738781801,0.61028288,3410.5,3410.4,5.8644]
[1718738782005,0.61028288,3410.9,3410.6,2.93199]
[1718738782214,0.61028288,3411.0,3410.4,5.0412]
[1718738782398,7.98028288,3411.1,3410.8,2.93183]
[1718738783038,7.98028288,3411.1,3411.0,5.86338]
[1718738783190,0.61028288,3411.3,3411.1,2.9316]
[1718738783391,0.61028288,3411.3,3411.0,2.93167]
[1718738783708,0.91607918,3411.5,3411.0,2.93167]
[1718738783709,0.61028288,3411.4,3411.1,2.93157]
[1718738783901,0.61028288,3411.3,3411.1,2.93157]
[1718738784213,0.61028288,3411.4,3411.1,2.93157]
[1718738784419,2.93154,3411.2,3410.8,2.109]
[1718738784625,0.61028288,3411.1,3410.8,2.109]
[1718738784912,2.93177,3410.9,3410.5,2.9321]
[1718738785221,2.93187,3410.8,3410.4,2.109]
[1718738785421,0.61028288,3410.8,3410.4,5.0412]
[1718738785719,0.61028288,3410.8,3410.5,2.93209]
[1718738785935,0.61028288,3410.8,3409.7,0.691]
[1718738786147,2.93227,3410.4,3410.0,2.109]
[1718738786436,3.54240288,3410.5,3410.0,2.93254]
[1718738786739,0.61028288,3410.4,3410.1,2.93244]
[1718738789128,0.61028288,3410.4,3409.6,6.0706]
[1718738789129,2.93245,3410.2,3409.3,3.505506]
[1718738789448,3.54300288,3409.8,3409.1,2.93328]
[1718738789627,0.61028288,3409.6,3409.1,2.93328]
[1718738789832,0.61028288,3409.5,3409.1,2.93328]
[1718738790027,0.61028288,3409.6,3409.1,2.93328]
[1718738790229,0.61028288,3409.6,3409.4,2.93305]
[1718738790549,2.93324,3409.2,3408.3,2.93397]
[1718738790758,0.60973476,3409.0,3408.6,2.93368]
[1718738790936,0.60973476,3408.9,3408.5,2.93383]
[1718738791140,0.60973476,3408.9,3408.7,2.93359]
[1718738792161,0.60973476,3408.9,3408.8,2.93358]
[1718738792366,0.60973476,3409.0,3408.7,2.93366]
[1718738792528,3.84784214,3409.2,3408.3,0.293397]
[1718738792529,0.60973476,3408.9,3408.3,0.293397]
[1718738792728,0.60973476,3408.8,3408.4,2.93391]
[1718738792959,0.60973476,3408.8,3408.7,2.93366]
[1718738793160,0.60973476,3409.0,3408.7,2.93366]
[1718738793361,3.54307476,3409.1,3408.7,2.93366]
[1718738793563,3.54307476,3409.1,3407.6,7.1527]
[1718738793564,3.54326476,3408.9,3408.4,2.93391]
[1718738794031,0.60973476,3408.9,3408.5,2.93381]
[1718738794426,0.60973476,3408.9,3408.6,2.93375]
[1718738794628,0.60973476,3408.9,3407.9,2.813]
[1718738794831,0.60973476,3409.0,3408.8,2.93358]
[1718738795072,0.60973476,3409.1,3408.8,2.93358]
[1718738795365,0.60973476,3409.1,3408.0,0.8313]
[1718738795564,3.54315476,3409.0,3408.3,2.934]
[1718738795728,0.60973476,3408.9,3408.5,2.93383]
[1718738796135,3.54323476,3408.9,3408.5,2.93383]
[1718738796552,3.54323476,3408.9,3408.3,2.934]
[1718738796553,3.54323476,3408.9,3408.4,2.93391]
[1718738797038,0.60973476,3408.9,3408.8,2.93358]
[1718738797249,0.91460214,3409.1,3408.5,2.93378]
[1718738797250,0.60973476,3409.0,3408.5,2.93378]
[1718738797452,0.60973476,3408.9,3408.6,2.93373]
[1718738799064,2.93359,3408.8,3408.3,2.93394]
[1718738799265,0.60973476,3408.9,3408.5,2.93382]
[1718738799266,3.54323476,3408.9,3408.5,2.93382]
[1718738799443,0.60973476,3408.9,3408.5,2.93382]
[1718738799965,0.60973476,3408.9,3408.6,2.93367]
[1718738800141,0.60973476,3408.9,3408.6,2.93369]
[1718738800334,0.60973476,3409.0,3408.6,2.93369]
[1718738800960,0.60973476,3409.0,3408.5,2.93382]
[1718738801164,3.54315476,3409.0,3408.5,2.93382]
[1718738801962,0.60973476,3409.0,3408.6,2.93368]
[1718738802286,3.54314476,3409.0,3408.6,2.93368]
[1718738802465,0.60973476,3409.0,3408.6,0.586751]
[1718738802662,0.60973476,3409.0,3408.8,2.93357]
[1718738802874,0.60973476,3409.2,3408.8,2.93357]
[1718738803582,0.60973476,3409.2,3408.4,2.93388]
[1718738803783,0.60973476,3409.2,3408.8,2.93352]
[1718738804793,3.54298476,3409.2,3408.8,2.93352]
[1718738805299,2.93332,3409.1,3408.7,2.93365]
[1718738805605,2.93365,3408.8,3408.0,3.48424]
[1718738805906,2.9336,3408.8,3408.3,2.93399]
[1718738806103,3.54333476,3408.8,3408.3,2.93399]
[1718738806969,2.93376,3408.6,3408.0,3.48424]
[1718738807296,2.93393,3408.4,3408.0,2.93426]
[1718738807927,2.93419,3408.1,3407.5,2.9347]
[1718738808056,2.93417,3408.2,3407.4,2.93478]
[1718738808397,2.93442,3407.9,3407.4,2.93478]
[1718738809099,2.93442,3407.9,3407.5,2.93468]
[1718738809100,2.93437,3407.9,3407.5,2.93468]
[1718738809414,2.93444,3407.8,3407.4,2.93478]
[1718738809701,2.93427,3408.0,3407.4,2.93478]
[1718738809883,2.93437,3407.9,3407.4,2.93478]
[1718738810084,2.93435,3407.9,3407.5,2.93463]
[1718738810912,2.93462,3407.6,3407.2,2.93494]
[1718738811131,2.93462,3407.6,3407.1,2.93502]
[1718738811285,2.93462,3407.6,3407.1,3.537958]
[1718738811484,2.93445,3407.8,3407.3,2.93486]
[1718738811720,2.93437,3407.9,3407.5,2.93468]
[1718738812109,7.37,3408.0,3407.6,2.93454]
[1718738812335,7.37,3408.0,3407.4,2.93477]
[1718738812842,7.37,3408.0,3407.5,2.93468]
[1718738813187,7.37,3408.0,3407.6,2.93459]
[1718738813416,10.30429,3408.0,3407.5,2.93468]
[1718738813646,2.93436,3407.9,3407.5,2.93468]
[1718738815633,7.37,3408.0,3407.6,2.93458]
[1718738815942,7.37,3408.0,3407.4,2.93478]
[1718738816098,7.37,3408.0,3406.9,2.9352]
[1718738816099,2.93485,3407.4,3406.9,2.9352]
[1718738816433,2.93485,3407.4,3406.7,4.0282]
[1718738816434,2.93496,3407.2,3406.7,2.93538]
[1718738816724,2.93496,3407.2,3406.8,2.9353]
[1718738817428,2.93505,3407.1,3406.6,5.94197111]
[1718738817632,2.93505,3407.1,3406.4,2.9356]
[1718738817633,2.93526,3406.9,3406.4,2.93557]
[1718738817806,2.93532,3406.8,3406.4,2.93557]
[1718738818004,2.93532,3406.8,3406.3,5.04672]
[1718738818195,2.93523,3406.9,3406.4,2.93564]
[1718738818604,2.93515,3407.0,3406.5,2.93556]
[1718738819005,2.93505,3407.1,3406.4,2.93557]
[1718738819514,2.93515,3407.0,3406.5,2.93549]
[1718738820131,2.93505,3407.1,3406.6,2.93545]
[1718738820312,7.37,3407.5,3407.2,2.93495]
[1718738820629,2.93462,3407.6,3406.9,2.93521]
[1718738820827,4.1007,3407.8,3406.7,2.111]
[1718738821029,2.93502,3407.2,3406.7,2.93536]
[1718738821230,2.9347,3407.5,3407.1,2.93504]
[1718738821428,2.9347,3407.5,3406.7,3.733535]
[1718738821429,2.9347,3407.5,3407.0,2.93511]
[1718738821728,2.93454,3407.7,3406.9,2.93513]
[1718738821935,2.9347,3407.5,3407.0,2.93511]
[1718738822149,2.93461,3407.6,3407.1,2.93502]
[1718738822302,7.37,3407.9,3407.5,2.93467]
[1718738822503,7.37,3407.9,3407.6,2.9346]
[1718738822712,7.37,3407.9,3407.5,3.521643]
[1718738823007,7.37,3408.3,3407.8,2.93443]
[1718738823252,2.93413,3408.2,3407.7,2.93451]
[1718738823568,2.93429,3408.0,3407.3,2.93479]
[1718738823729,2.93429,3408.0,3407.5,2.93469]
[1718738823913,2.93419,3408.1,3407.6,2.93453]
[1718738824109,2.93419,3408.1,3407.4,2.93473]
[1718738824110,2.93401,3408.3,3407.4,2.93473]
[1718738824464,2.93401,3408.3,3407.2,2.111]
[1718738824465,2.93447,3407.8,3407.3,2.93478]
[1718738824758,2.93416,3408.2,3407.2,2.111]
[1718738824974,2.93431,3408.0,3407.4,2.93477]
[1718738825466,3.8877,3408.4,3407.9,2.9343]
[1718738825612,2.93386,3408.5,3407.9,2.9343]
[1718738825818,2.93394,3408.4,3407.9,2.93435]
[1718738826110,2.93391,3408.5,3407.9,2.93435]
[1718738826262,2.93386,3408.5,3408.0,2.9342]
[1718738827118,5.86777,3408.5,3408.0,2.9342]
[1718738827397,6.37547131,3408.6,3408.0,2.9342]
[1718738827668,2.93387,3408.5,3408.0,2.9342]
[1718738828430,2.93402,3408.3,3407.6,2.111]
[1718738828660,2.93438,3407.9,3407.4,2.93475]
[1718738828831,2.93449,3407.8,3407.2,5.04589]
[1718738829156,2.9344,3407.9,3406.9,2.9352]
[1718738829335,2.93474,3407.5,3407.0,2.93512]
[1718738829727,2.93463,3407.6,3407.1,2.93501]
[1718738829949,2.93472,3407.5,3407.0,2.93511]
[1718738830720,2.93463,3407.6,3406.8,2.111]
[1718738831051,2.93506,3407.1,3406.6,2.93546]
[1718738832123,2.93516,3407.0,3406.5,5.04655]
[1718738832356,2.9354,3406.7,3406.2,2.9358]
[1718738832566,2.93506,3407.1,3406.2,2.9358]
[1718738832567,2.93532,3406.8,3406.3,2.93572]
[1718738832934,0.60973476,3407.1,3406.3,2.93573]
[1718738833148,2.93523,3406.9,3406.4,2.93562]
[1718738833436,2.93514,3407.0,3406.4,2.93562]
[1718738833834,2.93523,3406.9,3406.4,2.93562]
[1718738834261,2.93532,3406.8,3406.3,2.93573]
[1718738834634,2.9353,3406.8,3406.2,5.04681]
[1718738834871,2.9354,3406.7,3406.2,7.98262]
[1718738835079,2.9354,3406.7,3406.2,5.04681]
[1718738835236,3.54496476,3406.9,3406.3,2.93572]
[1718738835237,2.93532,3406.8,3406.3,2.93572]
[1718738836398,0.60973476,3406.9,3406.6,2.93545]
[1718738836686,0.60973476,3407.0,3406.4,2.93564]
[1718738837260,0.60973476,3407.0,3406.3,3.733983]
[1718738837457,2.93522,3406.9,3406.4,2.93562]
[1718738838382,3.54488476,3407.0,3406.5,2.93555]
[1718738839053,0.60973476,3407.0,3406.7,2.93532]
[1718738839281,0.60973476,3407.0,3406.5,2.93548]
[1718738839282,0.60973476,3407.0,3406.8,2.9353]
[1718738839483,0.60973476,3407.1,3406.7,2.93537]
[1718738839852,0.60973476,3407.1,3406.8,2.93529]
[1718738840053,0.60973476,3407.2,3406.8,0.798175]
[1718738840284,0.60973476,3407.4,3407.0,2.111]
[1718738840486,10.91451476,3407.5,3407.0,5.04608]
[1718738840654,2.93478,3407.5,3407.0,5.04608]
[1718738840983,3.54436476,3407.6,3407.1,2.93504]
[1718738841203,3.54436476,3407.6,3407.0,2.111]
[1718738841204,0.60973476,3407.6,3407.3,2.93485]
[1718738841585,0.60973476,3407.8,3407.7,2.93453]
[1718738841885,0.60973476,3408.2,3408.0,2.93427]
[1718738842252,0.60973476,3408.3,3408.0,2.93427]
[1718738842453,0.60973476,3408.2,3408.1,2.93418]
[1718738842677,0.60973476,3408.3,3408.1,2.93418]
[1718738842889,0.60973476,3408.3,3408.2,2.9341]
[1718738843091,0.60973476,3408.4,3408.1,4.025568]
[1718738843258,0.60973476,3408.4,3408.1,2.93418]
[1718738844171,0.60973476,3408.4,3408.0,2.93426]
[1718738844475,0.60973476,3408.3,3408.0,2.93426]
[1718738845257,0.60973476,3408.3,3408.0,2.93419]
[1718738845458,0.60973476,3408.3,3407.9,5.04534]
[1718738845661,2.93444,3407.9,3407.4,2.93478]
[1718738845863,3.54417476,3407.9,3407.4,2.93478]
[1718738846079,0.60973476,3407.8,3407.4,2.93478]
[1718738846280,0.60973476,3407.7,3407.4,2.93478]
[1718738846483,0.60973476,3407.6,3407.4,2.93478]
[1718738846802,0.60973476,3407.6,3406.8,2.93523]
[1718738847094,3.54324155,3407.3,3406.8,5.04629]
[1718738847395,0.60836155,3407.1,3406.9,2.9352]
[1718738847599,0.60836155,3407.1,3407.0,2.93513]
[1718738847961,0.60836155,3407.2,3407.0,2.93513]
[1718738848161,0.60836155,3407.1,3407.0,2.93513]
[1718738849064,0.60836155,3407.2,3407.1,2.93504]
[1718738849403,0.91460214,3407.3,3407.1,2.93504]
[1718738849693,1.21860101,3407.4,3407.1,2.93502]
[1718738849694,0.60874592,3407.4,3407.1,2.93502]
[1718738849912,0.60874592,3407.2,3407.1,2.93502]
[1718738850070,0.60874592,3407.3,3407.2,2.93496]
[1718738850269,0.60874592,3407.3,3407.2,2.93489]
[1718738851008,0.91460214,3407.3,3406.9,5.04614]
[1718738851163,0.60900846,3407.1,3406.9,2.9352]
[1718738851367,0.60900846,3407.0,3406.9,5.87041]
[1718738852290,0.91460214,3407.1,3407.0,2.93505]
[1718738852663,0.91460214,3407.1,3406.8,2.111]
[1718738852869,0.91460214,3406.9,3406.4,5.04664]
[1718738853073,0.60923703,3406.7,3406.6,2.93547]
[1718738853277,0.91384112,3406.8,3406.7,2.93539]
[1718738853599,1.21860101,3406.9,3406.6,2.93545]
[1718738853798,0.91392318,3406.7,3406.6,2.93545]
[1718738854601,0.91392318,3406.8,3406.5,2.93555]
[1718738854775,0.91392318,3406.7,3406.6,2.93546]
[1718738855199,0.91392318,3406.7,3406.6,5.87093]
[1718738855670,0.91392318,3406.8,3406.6,2.93546]
[1718738855899,0.91392318,3406.8,3406.5,2.93553]
[1718738855900,1.21860101,3406.8,3406.5,2.93553]
[1718738856098,0.91388166,3406.6,3406.5,2.93553]
[1718738856405,1.21860101,3406.7,3406.6,2.93547]
[1718738856826,1.21860101,3406.7,3406.5,2.93554]
[1718738857007,0.91372782,3406.6,3406.5,2.93554]
[1718738858536,0.91372782,3406.6,3406.5,5.8711]
[1718738858743,1.21860101,3406.8,3406.5,2.93554]
[1718738858889,0.91330644,3406.6,3406.5,2.93554]
[1718738859604,1.21860101,3406.7,3406.5,2.93556]
[1718738860624,1.21860101,3406.8,3406.7,2.93539]
[1718738862110,1.21860101,3406.9,3406.7,2.93539]
[1718738862297,1.21860101,3406.8,3406.7,2.93539]
[1718738862498,1.21860101,3406.8,3406.4,5.04661]
[1718738862809,0.91281371,3406.6,3406.4,5.04661]
[1718738863013,0.60855509,3406.5,3406.4,5.04661]
[1718738863199,0.91281371,3406.6,3406.5,2.93556]
[1718738863800,0.91281371,3406.6,3406.4,5.04657]
[1718738864419,0.91338538,3406.6,3406.5,2.93556]
[1718738865037,1.21860101,3406.7,3406.4,5.04664]
[1718738865229,3.84874677,3406.6,3406.1,2.93586]
[1718738865400,3.84874677,3406.6,3405.7,2.93623]
[1718738865401,0.60880973,3406.2,3405.9,2.93606]
[1718738865603,0.60878869,3406.0,3405.9,2.93606]
[1718738865808,0.91322677,3406.1,3405.9,2.93606]
[1718738866013,0.91322677,3406.0,3405.9,2.93606]
[1718738866411,0.91322677,3406.1,3406.0,2.93599]
[1718738867430,0.91322677,3406.1,3405.8,2.111]
[1718738867651,0.60859948,3405.9,3405.8,5.04716]
[1718738867995,0.60859948,3405.9,3405.8,2.111]
[1718738868200,0.60859948,3406.0,3405.8,2.111]
[1718738868620,0.91322677,3406.0,3405.8,2.111]
[1718738868806,2.93592,3406.1,3405.8,2.111]
[1718738868807,0.91322677,3405.9,3405.8,2.111]
[1718738869336,0.91249438,3405.9,3405.8,2.111]
[1718738869639,1.21860101,3406.0,3405.8,5.04708]
[1718738869829,0.91269284,3405.9,3405.8,5.04708]
[1718738870132,0.60852137,3405.9,3405.8,7.98324]
[1718738870338,0.60852137,3405.9,3405.8,11.717724]
[1718738870546,0.60852137,3406.0,3405.9,5.87216]
[1718738872835,0.91269284,3406.2,3405.9,5.87216]
[1718738872836,0.60852137,3406.1,3406.0,5.87198]
[1718738873010,0.91269284,3406.2,3405.9,6.90758]
[1718738873011,0.60852137,3406.2,3405.9,6.90758]
[1718738873204,0.60852137,3406.2,3406.1,5.8718]
[1718738873436,0.60852137,3406.2,3406.1,2.9359]
[1718738873641,0.60852137,3406.2,3406.1,5.8718]
[1718738874012,0.60852137,3406.2,3406.1,10.4315704]
[1718738874210,0.60875331,3406.5,3406.3,2.93573]
[1718738874405,0.60875331,3406.6,3406.5,5.87112]
[1718738874721,7.97875331,3406.7,3406.6,5.87094]
[1718738874904,0.91269284,3406.8,3406.7,5.87078]
[1718738875109,0.60877294,3406.8,3406.7,5.87078]
[1718738875440,0.60877294,3406.8,3406.7,6.668958]
[1718738875912,0.60877294,3406.8,3406.7,9.604348]
[1718738876113,0.60877294,3406.9,3406.8,5.8706]
[1718738876541,0.60877294,3407.0,3406.9,8.80563]
[1718738876743,0.60877294,3407.2,3407.1,5.87008]
[1718738876938,7.97877294,3407.3,3407.2,5.86992]
[1718738877138,7.97877294,3407.3,3407.2,5.04596]
[1718738877368,7.37,3407.3,3407.2,5.04596]
[1718738877571,7.37,3407.3,3407.2,7.98092]
[1718738877869,7.97880495,3407.3,3407.2,7.98092]
[1718738878247,7.97879689,3407.3,3407.2,7.98092]
[1718738878655,7.37,3407.3,3407.2,7.98092]
[1718738878841,7.97875905,3407.3,3407.2,7.98092]
[1718738879280,7.97875905,3407.3,3407.2,5.04596]
[1718738879482,0.60874428,3407.3,3407.2,5.04596]
[1718738879778,0.91269284,3407.4,3407.3,2.93487]
[1718738880347,0.91269284,3407.4,3406.8,2.9353]
[1718738880573,0.608825,3407.2,3406.9,2.9352]
[1718738880938,0.91269284,3407.3,3406.8,2.111]
[1718738880939,0.608825,3407.1,3406.8,5.04628]
[1718738881142,0.608825,3407.0,3406.8,2.111]
[1718738881452,0.91269284,3406.9,3406.4,2.111]
[1718738881657,0.60891167,3406.6,3406.5,5.87105]
[1718738881857,0.91269284,3406.8,3406.7,2.93539]
[1718738882169,0.91269284,3406.8,3406.5,2.93549]
[1718738882170,0.91269284,3406.8,3406.5,2.93555]
[1718738882368,0.60890532,3406.6,3406.5,2.93555]
[1718738883073,0.60890532,3406.6,3406.4,5.04659]
[1718738883378,0.60890532,3406.6,3406.5,2.93556]
[1718738883897,0.60890532,3406.6,3406.5,5.87112]
[1718738884204,0.60890532,3406.9,3406.6,2.93547]
[1718738884493,0.60890532,3407.1,3407.0,8.80539]
[1718738884787,7.37,3407.3,3407.2,5.86992]
[1718738884788,7.97890532,3407.3,3407.2,5.86992]
[1718738884986,0.60890532,3407.4,3407.3,2.93487]
[1718738885191,0.91269284,3407.5,3407.4,8.80434]
[1718738885354,0.91269284,3407.6,3407.5,5.8694]
[1718738885557,1.39302172,3407.8,3407.5,5.8694]
[1718738885558,0.91269284,3407.7,3407.6,2.93461]
[1718738886361,1.39302172,3407.8,3407.6,2.93461]
[1718738886566,0.91343282,3407.7,3407.6,2.93461]
[1718738886768,1.39302172,3407.8,3407.6,2.93461]
[1718738886974,0.9134171,3407.7,3407.6,2.93461]
[1718738887786,0.9134171,3407.7,3407.6,5.86922]
[1718738887958,0.9134171,3407.7,3407.6,2.93461]
[1718738888579,0.9134171,3407.7,3407.6,5.86922]
[1718738888776,0.9134171,3407.8,3407.7,5.86906]
[1718738889188,1.39302172,3408.1,3407.9,2.93435]
[1718738889557,1.21860101,3408.0,3407.9,2.93435]
[1718738889855,1.21860101,3408.0,3407.8,2.93442]
[1718738890055,0.91362532,3407.9,3407.7,5.04551]
[1718738890483,1.21860101,3408.0,3407.9,5.8687]
[1718738890690,1.21860101,3408.1,3408.0,2.93427]
[1718738891158,1.69745731,3408.2,3407.9,2.93433]
[1718738891355,1.21862032,3408.0,3407.9,2.93433]
[1718738891899,1.21862032,3408.1,3408.0,2.93427]
[1718738892061,1.21877355,3408.1,3408.0,2.93427]
[1718738893169,1.21877355,3408.1,3407.9,2.93434]
[1718738893494,1.21877355,3408.1,3408.0,2.93427]
[1718738894059,1.39319426,3408.2,3408.0,2.93427]
[1718738894280,1.39319426,3408.2,3408.1,2.93418]
[1718738894663,1.39319426,3408.2,3408.1,11.793815]
[1718738895014,1.39319426,3408.6,3408.4,2.93392]
[1718738895213,0.91427237,3408.6,3408.5,2.93384]
[1718738895862,0.17428499,3408.6,3408.5,2.93384]
[1718738896190,0.91385977,3408.6,3408.5,2.93384]
[1718738896890,0.91385977,3408.6,3408.4,2.93391]
[1718738897189,0.91385977,3408.6,3408.5,10.0]
[1718738897374,3.10793336,3408.6,3408.5,10.0]
[1718738897762,4.63096996,3408.6,3408.5,10.0]
[1718738898291,11.36041996,3408.6,3408.5,10.0]
[1718738898599,14.29416996,3408.6,3408.5,10.0]
[1718738898772,11.36041996,3408.6,3408.5,10.0]
[1718738898963,14.29416996,3408.6,3408.5,10.0]
[1718738899164,12.77113336,3408.6,3408.5,10.0]
[1718738900063,12.77113336,3408.6,3408.5,8.26894879]
[1718738900393,15.41215769,3408.6,3408.5,8.26894879]
[1718738900696,17.65594747,3408.6,3408.5,8.26894879]
[1718738900884,19.78919153,3408.6,3408.5,8.26894879]
[1718738901082,26.82816244,3408.6,3408.5,5.3177612]
[1718738901403,2.93455,3407.7,3406.8,2.111]
[1718738901601,2.93455,3407.7,3406.9,2.93521]